[Event "SUI-ch Bundesturnier TP-1 2022"]
[Site "Payerne"]
[Date "2022.05.28"]
[Round "6.8"]
[White "Mamalis, Prokopios"]
[Black "Pogan, Nikolas"]
[Result "1-0"]
[ECO "B11"]
[WhiteElo "2067"]
[BlackElo "2239"]
[Annotator "TA"]
[PlyCount "97"]
[EventDate "2022.05.26"]
[EventType "swiss"]
[EventCountry "SUI"]
[SourceTitle "playchess.com"]
[Source "ChessBase"]
[SourceQuality "1"]
[TimeControl "5400+30"]

{[%evp 10,97,20,9,18,10,18,12,47,41,52,23,33,15,97,37,76,37,72,32,87,46,69,44,65,21,61,28,52,0,61,0,52,54,48,45,47,41,31,33,42,18,87,61,67,0,0,0,69,42,48,53,72,39,40,45,62,60,79,75,131,126,195,215,217,168,243,200,212,212,296,297,295,317,303,301,972,998,985,996,979,973,963,959,976,945,846,579,762,744]} 1. e4 {[%emt 0:04:35]} c6 {[%emt 0:00:01]} 2. Nf3 {[%emt 0:00:22]} d5 {[%emt 0:00:03]} 3. Nc3 {[%emt 0:00:11]} Bg4 {[%emt 0:00:26]} 4. h3 {[%emt 0:00:22]} Bxf3 {[%emt 0:00:58]} 5. Qxf3 {[%emt 0:00:20]} e6 {[%emt 0:00:03]} 6. Be2 {[%emt 0:00:14]} Nf6 {[%emt 0:00:05] B11: Caro-Kann: Two Knights Variation.} 7. O-O {[%emt 0:00:19]} Bc5 {[%emt 0:06:57]} 8. Rd1 $1 {[%emt 0:01:06] 8.Rd1 is better than 8.d3.} O-O {[%emt 0:10:06] The position is equal.} 9. d4 {[%emt 0:03:59] [#]} Be7 $146 {[%emt 0:01:17]} ({Predecessor:} 9... Bb4 10. e5 Nfd7 11. Qg3 Kh8 12. Bg4 c5 13. Ne2 cxd4 14. Nxd4 Qc7 15. c3 Bc5 {0-1 (44) Barkasheva,S (1634)-Khachatryan,M (1830) Moscow 2021}) 10. Be3 {[%emt 0:05:04]} Nbd7 {[%emt 0:00:40][%cal Bb8d7,Bd7b6,Bb6c4][%mdl 32]} 11. Bd3 {[%emt 0:02:13]} Kh8 {[%emt 0:00:21]} (11... dxe4 $11 {remains equal.} 12. Nxe4 (12. Bxe4 Nxe4 13. Nxe4 Nf6 $11) 12... Nxe4 13. Qxe4 Nf6) 12. Rab1 {[%emt 0:11:54]} ({White should try} 12. e5 $16) 12... a6 {[%emt 0:00:55]} 13. a3 {[%emt 0:04:13]} (13. e5 $5 {[%cal Re5f6]} Ne8 14. Ne2 $16 (14. Qh5 g6 $14)) 13... Rc8 {[%emt 0:01:32]} 14. Re1 {[%emt 0:03:11]} (14. e5 $5 {[%cal Re5f6]} Ng8 15. b4 $14 (15. Qh5 g6 $11)) 14... b5 {[%emt 0:07:03]} (14... Nxe4 $14 15. Nxe4 dxe4 16. Qxe4 Nf6) 15. Rbd1 {[%emt 0:18:45]} Nb6 {[%emt 0:03:14]} 16. Bc1 {[%emt 0:01:11]} (16. e5 $5 {[%cal Re5f6]} Nfd7 17. Ne2 $11 (17. Qh5 g6 $11)) 16... Nc4 {[%emt 0:01:02]} 17. Kh1 {[%emt 0:02:29]} Qa5 {[%emt 0:13:08]} 18. Qg3 {[%emt 0:06:05]} Qc7 {[%emt 0:11:35]} 19. Qf3 {[%emt 0:07:08]} (19. e5 $1 $14 Nd7 20. a4) 19... Qb7 {[%emt 0:03:27]} ({Black should play} 19... Qa5 $11) 20. Qg3 {[%emt 0:02:12]} (20. e5 $14 Nd7 21. Ne2 (21. Qh5 g6 $11)) 20... Qb8 {[%emt 0:00:20]} ({Better is} 20... Qc7 $11) 21. e5 $14 {[%emt 0:01:29] Black must now prevent Qh4.} Nd7 {[%emt 0:07:32]} 22. Ne2 {[%emt 0:01:15][%cal Bc3e2,Be2f4,Bf4h5][%mdl 32]} c5 {[%emt 0:03:11]} 23. c3 {[%emt 0:02:31]} cxd4 {[%emt 0:07:43]} 24. cxd4 {[%emt 0:00:34]} Rc6 {[%emt 0:01:48]} 25. Nf4 {[%emt 0:01:00]} Qd8 {[%emt 0:03:17]} (25... Rfc8 $11) 26. Qf3 {[%emt 0:01:06] And now Qh5 would win. White is more active.} (26. Nh5 g6 27. Nf4 Qb6 $11) 26... g6 {[%emt 0:04:59] Against Qh5} 27. Nh5 {[%emt 0:03:39]} Bg5 {[%emt 0:03:35] Threatens to win with ...Bxc1.} 28. Nf4 $1 {[%emt 0:00:59]} Be7 {[%emt 0:05:47]} 29. Qg4 {[%emt 0:02:29]} Rg8 {[%emt 0:00:00]} 30. Bb1 {[%emt 0:00:51]} Nf8 {[%emt 0:02:35]} 31. Ne2 {[%emt 0:02:20]} Nd7 {[%emt 0:01:16]} 32. Qf3 {[%emt 0:00:28]} Qe8 {[%emt 0:00:35]} 33. Nf4 {[%emt 0:01:20]} Qd8 {[%emt 0:00:33]} 34. g3 {[%emt 0:00:31] White now steadily converts the win.} Bf8 {[%emt 0:00:26]} (34... Qf8 $142) 35. h4 $16 {[%emt 0:00:49][%cal Bh3h4,Bh4h5,Bh5g6][%mdl 32]} f5 {[%emt 0:00:22]} (35... Qe8 $16) 36. exf6 $18 {[%emt 0:00:55]} Qxf6 {[%emt 0:00:04]} 37. Qg4 {[%emt 0:01:23][%cal Rf4e6]} Bg7 {[%emt 0:01:09]} (37... Qf7 $142 38. Nxe6 (38. Rxe6 Rxe6 39. Qxe6 Qxe6 $18) 38... Nf6) 38. Kg1 {[%emt 0:00:42]} ({Don't play} 38. Nxe6 $6 Re8) ({Don't do} 38. Rxe6 $6 Rxe6 39. Qxe6 Qxe6 40. Nxe6 Re8 $16) 38... Nf8 {[%emt 0:00:37]} 39. Kg2 {[%emt 0:01:06]} Nb6 {[%emt 0:00:29]} 40. h5 {[%emt 0:00:45][%cal Rh5g6]} g5 {[%emt 0:00:15] [#]} 41. Ng6+ {[%emt 0:00:45][%mdl 512]} Nxg6 {[%emt 0:00:35]} 42. hxg6 {[%emt 0:00:26]} h6 {[%emt 0:00:11] [#]} (42... Rf8 43. f4 Rxc1 44. Rxc1 Qxd4 45. Qxg5 Qxb2+ 46. Rc2 h6) 43. Bxg5 $1 {[%emt 0:01:51][%mdl 512] White is clearly winning.} Qxg5 {[%emt 0:00:26]} 44. Qxg5 {[%emt 0:00:06]} hxg5 {[%emt 0:00:02]} 45. Rh1+ {[%emt 0:00:08]} Bh6 {[%emt 0:00:01]} 46. Rxh6+ {[%emt 0:00:07]} Kg7 {[%emt 0:00:02]} 47. Rh7+ {[%emt 0:01:02]} Kf8 {[%emt 0:00:00]} 48. Rf7+ {[%emt 0:02:50]} Ke8 {[%emt 0:00:01]} 49. Rh1 {[%emt 0:00:35] Weighted Error Value: White=0.25 (precise) /Black=0.29 (precise)} 1-0

[Event "SUI-ch Bundesturnier TP-1 2022"]
[Site "Payerne"]
[Date "2022.05.28"]
[Round "6.9"]
[White "Rohrer, Christophe"]
[Black "Asllani, Dorian"]
[Result "0-1"]
[ECO "B31"]
[WhiteElo "2285"]
[BlackElo "2116"]
[Annotator "TA"]
[PlyCount "62"]
[EventDate "2022.05.26"]
[EventType "swiss"]
[EventCountry "SUI"]
[SourceTitle "playchess.com"]
[Source "ChessBase"]
[SourceQuality "1"]
[TimeControl "5400+30"]

{[%evp 14,62,21,31,23,14,29,24,43,16,20,17,21,17,25,-12,10,0,27,0,0,0,0,-54,-36,-137,-154,-158,-146,-118,-62,-67,-51,-102,-106,-104,-79,-363,-357,-406,-405,-677,-684,-663,-685,-691,-681,-622,-623,-585,-452]} 1. e4 {[%emt 0:00:05]} c5 {[%emt 0:00:09]} 2. Nf3 {[%emt 0:00:11]} Nc6 {[%emt 0:00:05]} 3. Bb5 {[%emt 0:00:24]} g6 {[%emt 0:00:20]} 4. Bxc6 {[%emt 0:00:07]} dxc6 {[%emt 0:00:04]} 5. d3 {[%emt 0:00:19]} Bg7 {[%emt 0:00:25]} 6. h3 {[%emt 0:00:28]} b6 {[%emt 0:02:52]} 7. Nc3 {[%emt 0:00:39]} e5 {[%emt 0:00:36] 7...e5 has become a bit dusty these days.} 8. Be3 {[%emt 0:01:36]} f6 {[%emt 0:03:28] B31: Sicilian: 2...Nc6 3 Bb5 g6.} 9. Qd2 {[%emt 0:01:24]} Be6 {[%emt 0:00:28]} 10. a3 {[%emt 0:03:25] [#]} Qd6 $146 {[%emt 0:07:46] White has an edge.} ({Predecessor:} 10... a5 11. O-O a4 12. Ne2 Ne7 13. Bh6 O-O 14. Rad1 Qd6 15. Nh2 f5 16. Bxg7 Kxg7 {0-1 (47) Stets,D (2468)-Gullaksen,E (2387) Fagernes 2012}) 11. Nh2 {[%emt 0:07:31]} g5 {[%emt 0:04:26]} 12. h4 {[%emt 0:01:26]} h6 {[%emt 0:00:40]} 13. Nf1 {[%emt 0:03:44]} Ne7 {[%emt 0:01:23]} 14. h5 {[%emt 0:07:36]} Rd8 {[%emt 0:03:33]} 15. Qe2 {[%emt 0:04:17]} Qd7 {[%emt 0:03:22]} 16. f3 {[%emt 0:07:57]} f5 {[%emt 0:02:24] Inhibits g4.} 17. exf5 {[%emt 0:01:58]} Nxf5 {[%emt 0:00:34][%cal Oe5e4]} 18. Bf2 {[%emt 0:07:05]} (18. O-O-O $11) 18... O-O {[%emt 0:02:04][%cal Oe5e4]} 19. g4 {[%emt 0:03:49]} ({Better is} 19. O-O-O $15) 19... Nd4 $17 {[%emt 0:04:29] Black is more active.} 20. Bxd4 {[%emt 0:00:14]} exd4 {[%emt 0:04:00]} ({Not} 20... Qxd4 21. O-O-O $15) 21. Ne4 {[%emt 0:00:39]} Qf7 {[%emt 0:01:43]} (21... c4 $17 22. Nfd2 c3 23. bxc3 dxc3) 22. Nfd2 $15 {[%emt 0:02:44]} c4 {[%emt 0:01:08]} 23. O-O {[%emt 0:04:56]} (23. dxc4 $15 d3 24. cxd3) 23... c3 $36 {[%emt 0:03:34][%mdl 2048] White is under strong pressure.} 24. bxc3 {[%emt 0:00:34]} dxc3 {[%emt 0:00:09]} 25. Nb1 {[%emt 0:00:34][%mdl 8192] [#] Now White is beyond hope.} (25. Nc4 $17) 25... Bd5 $19 {[%emt 0:00:30]} ({Don't blunder} 25... Bd4+ $2 26. Kg2 $17) 26. a4 {[%emt 0:09:08]} Qf4 {[%emt 0:09:10] Threatens to win with ...Bxe4.} 27. Qh2 {[%emt 0:01:42]} (27. Kh1 $142 Bxe4 28. dxe4) 27... Bd4+ {[%emt 0:02:16] Black is clearly winning.} 28. Kh1 {[%emt 0:00:37] [#]} Qxg4 {[%emt 0:03:06][%mdl 512]} 29. fxg4 {[%emt 0:00:56]} Bxe4+ {[%emt 0:00:43]} 30. dxe4 {[%emt 0:00:14]} Rxf1+ {[%emt 0:00:05]} 31. Kg2 {[%emt 0:00:05]} Rf2+ {[%emt 0:00:42] Weighted Error Value: White=0.56/Black=0.09 (flawless)} 0-1

[Event "SUI-ch Bundesturnier TP-1 2022"]
[Site "Payerne"]
[Date "2022.05.28"]
[Round "6.10"]
[White "Rappaz, Pierre-M."]
[Black "Gschnitzer, Adrian"]
[Result "0-1"]
[ECO "A33"]
[WhiteElo "2024"]
[BlackElo "2441"]
[Annotator "TA"]
[PlyCount "52"]
[EventDate "2022.05.26"]
[EventType "swiss"]
[EventCountry "SUI"]
[SourceTitle "playchess.com"]
[Source "ChessBase"]
[SourceQuality "1"]
[TimeControl "5400+30"]

{[%evp 13,52,0,-18,-59,-54,-119,-104,-172,-168,-392,-373,-394,-376,-418,-427,-410,-426,-431,-420,-469,-463,-467,-473,-555,-552,-557,-539,-547,-522,-543,-530,-532,-535,-515,-470,-680,-680,-850,-645,-632,-609]} 1. Nf3 {[%emt 0:00:53][%cal Bg1f3,Bf3d4,Bd4b5][%mdl 32]} Nf6 {[%emt 0:01:12]} 2. c4 {[%emt 0:00:50]} c5 {[%emt 0:00:26]} 3. d4 {[%emt 0:00:24]} cxd4 {[%emt 0:00:07]} 4. Nxd4 {[%emt 0:00:21]} Nc6 {[%emt 0:00:17][%cal Bb8c6,Bc6e5,Be5c4][%mdl 32]} 5. Nc3 {[%emt 0:00:29]} e6 {[%emt 0:00:13][%cal Be7e6,Be6e5][%mdl 32]} 6. g3 {[%emt 0:00:38]} Qb6 {[%emt 0:00:18]} 7. Ndb5 {[%emt 0:06:11]} Ne5 {[%emt 0:00:53] With the idea ...Bc5.} 8. Be3 {[%emt 0:03:26] Recently 8.Bf4 got a lot of attention. A33: Symmetrical English: 2 Nf3 Nf6 3 d4 cxd4 4 Nxd4 e6 5 Nc3 Nc6.} Qc6 {[%emt 0:04:32] [#] And now ...a6 would win.} 9. f3 $146 {[%emt 0:01:49]} (9. Qd4 $15) ({Predecessor:} 9. Bf4 a6 10. Qa4 b6 11. Nd4 Qxh1 12. Bxe5 Ng4 13. Nf3 Bb7 14. O-O-O Bc6 15. Qc2 Bxf3 16. exf3 Nxe5 {0-1 (61) Govciyan,P (2430)-Cornette,M (2487) Aix les Bains 2007}) 9... Nxc4 $17 {[%emt 0:01:52]} 10. Bf4 {[%emt 0:04:46]} (10. Bc1 $17) 10... e5 $19 {[%emt 0:01:47]} ({But not} 10... Nxb2 11. Qb3 e5 12. Bxe5 $16) 11. Bg5 {[%emt 0:01:12] [#]} (11. e4 exf4 12. Bxc4 Qxc4 13. e5) 11... a6 $1 {[%emt 0:01:05]} 12. b3 {[%emt 0:04:57]} Nb6 {[%emt 0:00:50]} ({Don't go for} 12... axb5 $2 13. bxc4 bxc4 14. Bxf6 gxf6 15. Nd5 $19) 13. Rc1 {[%emt 0:01:42]} axb5 {[%emt 0:00:38]} 14. e4 {[%emt 0:03:06]} Bb4 {[%emt 0:02:03][%csl LRa2,LRc3]} 15. Bd2 {[%emt 0:04:26]} Qd6 {[%emt 0:04:46]} 16. Bxb5 {[%emt 0:04:16]} O-O {[%emt 0:01:33] Black is clearly winning.} 17. Qe2 {[%emt 0:02:16]} Qd4 {[%emt 0:09:12]} 18. Kf1 {[%emt 0:02:57]} d5 {[%emt 0:13:06]} 19. Be3 {[%emt 0:03:38]} Bh3+ {[%emt 0:00:06]} 20. Kf2 {[%emt 0:00:38] [#]} Bxc3 {[%emt 0:00:11]} 21. Bxd4 {[%emt 0:01:22]} Bxd4+ {[%emt 0:00:07]} 22. Ke1 {[%emt 0:00:16]} dxe4 {[%emt 0:00:15]} 23. fxe4 {[%emt 0:01:38]} Ng4 {[%emt 0:00:58]} 24. Rc7 {[%emt 0:06:37]} (24. Rf1 $142 Bxf1 25. Kxf1) 24... Ne3 {[%emt 0:05:41] aiming for ...Bg2.} 25. a4 {[%emt 0:03:16]} Bg2 {[%emt 0:04:04] A strong pair of Bishops.} 26. Rg1 {[%emt 0:02:00]} Bxe4 {[%emt 0:00:15] White got outplayed after the opening.  Weighted Error Value: White=0.66/Black=0.14 (very precise)} 0-1

[Event "SUI-ch Bundesturnier TP-1 2022"]
[Site "Payerne"]
[Date "2022.05.29"]
[Round "7.1"]
[White "Bauer, Christian"]
[Black "Colmenares, Aurelio"]
[Result "1/2-1/2"]
[WhiteElo "2596"]
[BlackElo "2318"]
[Annotator "TA"]
[PlyCount "36"]
[EventDate "2022.05.26"]
[EventType "swiss"]
[EventCountry "SUI"]
[SourceTitle "playchess.com"]
[Source "ChessBase"]
[SourceQuality "1"]
[TimeControl "5400+30"]

{[%evp 16,17,8,-13]} 1. e4 {[%emt 0:00:09]} e5 {[%emt 0:00:05]} 2. Nf3 {[%emt 0:00:13]} Nc6 {[%emt 0:00:04]} 3. Nc3 {[%emt 0:02:00]} Nf6 {[%emt 0:00:09]} 4. Bb5 {[%emt 0:00:22]} Bb4 {[%emt 0:00:08]} 5. O-O {[%emt 0:00:11]} O-O {[%emt 0:00:05]} 6. Bxc6 {[%emt 0:03:05]} bxc6 {[%emt 0:00:38]} 7. d3 {[%emt 0:05:09]} Bxc3 {[%emt 0:00:11]} 8. bxc3 {[%emt 0:00:09]} d6 {[%emt 0:04:58]} 9. Bg5 {[%emt 0:00:08] [#]} {Predecessor:} h6 $146 {C49: Four Knights: 4 Bb5 Bb4.} 10. Bh4 Bg4 11. Re1 Qe7 12. d4 Rfe8 13. Qd3 g5 14. Bg3 exd4 15. Nxd4 c5 16. Nc6 Qd7 17. Na5 Qa4 18. Nc4 Be6 {1-0 (53) Sjugirov,S (2663)-Macovei,A (2454) Chess.com INT 2021} 1/2-1/2

[Event "SUI-ch Bundesturnier TP-1 2022"]
[Site "Payerne"]
[Date "2022.05.29"]
[Round "7.2"]
[White "Sutter, Oliver"]
[Black "Willems, Niels"]
[Result "1/2-1/2"]
[ECO "A34"]
[WhiteElo "2316"]
[BlackElo "2338"]
[Annotator "TA"]
[PlyCount "112"]
[EventDate "2022.05.26"]
[EventType "swiss"]
[EventCountry "SUI"]
[SourceTitle "playchess.com"]
[Source "ChessBase"]
[SourceQuality "1"]
[TimeControl "5400+30"]

{[%evp 16,112,27,27,39,39,39,47,46,0,3,6,27,13,25,20,17,-58,-34,-54,-37,-87,-65,-89,-85,-84,-44,-113,-89,-71,-93,-90,-84,-85,-97,-87,-77,-79,-53,-84,-14,-14,-14,-14,-18,-17,-14,-13,-13,-14,-8,-8,-8,-16,5,0,0,-5,0,0,0,0,0,0,0,0,0,0,0,0,0,0,0,0,0,0,0,0,0,0,0,0,0,0,0,0,0,0,0,0,0,0,0,0,0,0,0,0,0]} 1. Nf3 {[%emt 0:00:09] Ribli,Z} c5 {[%emt 0:01:18]} 2. c4 {[%emt 0:00:21]} Nc6 {[%emt 0:00:17]} 3. Nc3 {[%emt 0:00:14]} Nf6 {[%emt 0:03:45]} 4. g3 {[%emt 0:00:36]} d5 {[%emt 0:02:02]} 5. cxd5 {[%emt 0:00:27]} Nxd5 {[%emt 0:00:07]} 6. Bg2 {[%emt 0:01:48]} Nc7 {[%emt 0:03:11]} 7. O-O {[%emt 0:01:21]} e5 {[%emt 0:01:19]} 8. a3 {[%emt 0:01:41]} Be7 {[%emt 0:02:08]} 9. b4 {[%emt 0:01:24][%cal Bb2b4,Bb4b5][%mdl 32]} O-O {[%emt 0:10:02] was the old line (9...cxb4). A34: Symmetrical English: 2 Nc3, lines with ...d5.} 10. b5 {[%emt 0:04:20]} Nd4 {[%emt 0:00:49]} 11. Nxe5 {[%emt 0:11:44]} Bf6 {[%emt 0:18:17] [#] White is slightly better.} 12. Nf3 $146 {[%emt 0:18:28]} (12. f4 $14 {feels stronger.}) ({Predecessor:} 12. f4 Bxe5 13. fxe5 Bg4 14. a4 Nxe2+ 15. Nxe2 Bxe2 16. Qxe2 Qd4+ 17. Qe3 Qxa1 18. Ba3 {1-0 (43) Hansen,C (2607)-Mueller,K (2489) Germany 2006 CBM 112 [Ribli,Z]}) 12... Nxf3+ {[%emt 0:01:58]} 13. Bxf3 {[%emt 0:00:12]} Nxb5 {[%emt 0:00:09]} 14. Rb1 {[%emt 0:03:31]} Nxc3 {[%emt 0:01:37]} 15. dxc3 {[%emt 0:00:05]} Bh3 {[%emt 0:02:55]} 16. Bg2 {[%emt 0:01:53]} (16. Bxb7 $11 Bxc3 17. Be3) 16... Bxg2 $15 {[%emt 0:00:37]} 17. Kxg2 {[%emt 0:00:04]} Qe7 {[%emt 0:01:32] [#] White must now prevent ...Qe4+.} 18. Qd3 {[%emt 0:03:40] Prevents Qe4+.} (18. Qc2 $1 $15) 18... Rfe8 {[%emt 0:05:40][%cal Of6c3]} 19. Be3 {[%emt 0:01:06]} b6 {[%emt 0:05:24]} 20. Rfd1 {[%emt 0:05:00]} Qe6 {[%emt 0:02:50]} 21. Kg1 {[%emt 0:02:57]} ({Better is} 21. c4 $15) 21... Qa2 {[%emt 0:04:41]} 22. c4 {[%emt 0:07:41] [#] Hoping for Rd2.} Rad8 {[%emt 0:01:39]} 23. Rd2 {[%emt 0:00:10]} Rxd3 {[%emt 0:01:03]} 24. Rxa2 {[%emt 0:00:04]} Rc3 {[%emt 0:00:04]} 25. a4 {[%emt 0:06:10]} Rxc4 {[%emt 0:01:58]} 26. a5 {[%emt 0:00:14]} Bd8 {[%emt 0:00:47]} (26... Rb4 $5 {[%cal Rb4b1]} 27. Rd1 h6 $17) 27. Rd2 {[%emt 0:01:51]} Rce4 {[%emt 0:02:24]} (27... bxa5 $2 28. Rb8 Kf8 29. Rdxd8 Rxd8 30. Rxd8+ Ke7 31. Ra8 $18) (27... Ra4 $17 28. axb6 axb6) 28. Rd7 $11 {[%emt 0:02:35] The position is equal.} R4e7 {[%emt 0:00:13]} 29. Rbd1 {[%emt 0:03:16]} Bc7 {[%emt 0:00:46]} 30. Bf4 $1 {[%emt 0:00:35]} Rxd7 {[%emt 0:01:20]} 31. Rxd7 {[%emt 0:00:07]} Bxf4 {[%emt 0:04:27]} 32. gxf4 {[%emt 0:00:04][%mdl 4096] Endgame KR-KR} Ra8 {[%emt 0:04:00]} 33. axb6 {[%emt 0:01:16]} axb6 {[%emt 0:00:01] Threatening ...g6.} 34. Rb7 {[%emt 0:00:05]} g5 {[%emt 0:00:24]} 35. Rxb6 {[%emt 0:00:19]} gxf4 {[%emt 0:03:48]} 36. Rc6 {[%emt 0:00:10] Inhibits Rc8.} Ra1+ {[%emt 0:00:31]} 37. Kg2 {[%emt 0:00:09]} Rc1 {[%emt 0:00:01]} 38. Kf3 {[%emt 0:00:31]} Rc4 {[%emt 0:00:09]} 39. h4 {[%emt 0:05:41]} Kg7 {[%emt 0:01:29]} 40. h5 {[%emt 0:00:46]} f6 {[%emt 0:00:58]} 41. Kg4 {[%emt 0:01:08]} Rc2 {[%emt 0:02:23]} 42. Rc7+ {[%emt 0:01:19]} Kh6 {[%emt 0:00:33]} 43. Rf7 {[%emt 0:00:13]} Rxe2 {[%emt 0:00:45]} 44. Rxf6+ {[%emt 0:00:04]} Kg7 {[%emt 0:00:05]} 45. Rxf4 {[%emt 0:00:05]} Rc2 {[%emt 0:01:12]} 46. Kg5 {[%emt 0:01:52]} h6+ {[%emt 0:01:04]} 47. Kf5 {[%emt 0:02:21]} Re2 {[%emt 0:00:39]} 48. Kg4 {[%emt 0:02:52]} Re5 {[%emt 0:03:22]} 49. Rf5 {[%emt 0:05:14]} Rxf5 {[%emt 0:00:51]} 50. Kxf5 {[%emt 0:00:04] KPP-KPP} c4 {[%emt 0:00:05]} 51. Ke4 {[%emt 0:00:03]} Kf6 {[%emt 0:00:05] And now ...Kg5 would win.} 52. Kd4 {[%emt 0:00:02]} Kg5 {[%emt 0:00:03]} 53. Kxc4 {[%emt 0:00:04]} Kxh5 {[%emt 0:00:09]} 54. Kd3 {[%emt 0:00:06]} Kg4 {[%emt 0:00:11] ( -> ...Kf3)} 55. Ke2 {[%emt 0:00:03]} h5 {[%emt 0:00:19]} 56. Kf1 {[%emt 0:00:04]} Kf3 {[%emt 0:00:14] Weighted Error Value: White=0.09 (flawless) /Black=0.08 (flawless)} 1/2-1/2

[Event "SUI-ch Bundesturnier TP-1 2022"]
[Site "Payerne"]
[Date "2022.05.29"]
[Round "7.3"]
[White "Joie, Sebastien"]
[Black "Mamalis, Prokopios"]
[Result "1-0"]
[ECO "A30"]
[WhiteElo "2376"]
[BlackElo "2067"]
[Annotator "TA"]
[PlyCount "89"]
[EventDate "2022.05.26"]
[EventType "swiss"]
[EventCountry "SUI"]
[SourceTitle "playchess.com"]
[Source "ChessBase"]
[SourceQuality "1"]
[TimeControl "5400+30"]

{[%evp 18,89,17,20,35,31,26,32,41,38,41,20,24,16,31,25,32,29,26,16,20,20,56,22,33,17,10,8,33,37,41,38,65,58,73,0,0,0,0,0,0,0,0,0,8,0,0,0,48,58,251,262,250,255,388,312,322,306,335,339,324,321,379,379,375,373,597,590,1175,1159,29950,10700,2226,2031]} 1. Nf3 {[%emt 0:05:47]} Nf6 {[%emt 0:00:43]} 2. g3 {[%emt 0:00:25]} b6 {[%emt 0:00:33]} 3. Bg2 {[%emt 0:00:04]} Bb7 {[%emt 0:00:05]} 4. O-O {[%emt 0:00:06]} g6 {[%emt 0:00:17]} 5. b3 {[%emt 0:00:04]} Bg7 {[%emt 0:00:06]} 6. Bb2 {[%emt 0:00:03]} O-O {[%emt 0:00:33]} 7. c4 {[%emt 0:00:03]} c5 {[%emt 0:00:23]} 8. Nc3 {[%emt 0:02:20]} d6 {[%emt 0:13:27]} 9. d4 {[%emt 0:01:38] 9.d4 scores better than 9.e3.} cxd4 {[%emt 0:02:34]} 10. Qxd4 {[%emt 0:00:03]} Ne4 {[%emt 0:03:21] A30: Symmetrical English: Double Fianchetto and Hedgehog.} 11. Qe3 {[%emt 0:00:12]} Nxc3 {[%emt 0:00:21]} 12. Bxc3 {[%emt 0:00:07]} Bxc3 {[%emt 0:00:06] White is slightly better.} 13. Qxc3 {[%emt 0:00:04]} Nd7 {[%emt 0:00:53]} 14. Qe3 {[%emt 0:02:51]} Nf6 {[%emt 0:04:22]} 15. Rad1 {[%emt 0:01:44] [#]} Qd7 $146 {[%emt 0:07:04]} ({Predecessor:} 15... Rc8 16. h4 Rc5 17. Rd4 a6 18. Rfd1 Qc7 19. b4 Bxf3 20. bxc5 bxc5 21. R4d3 Bxg2 22. Kxg2 {1-0 (47) Oparin,G (2652)-Livaic,L (2505) Chess.com INT 2021}) 16. Rd4 {[%emt 0:01:41]} Rfd8 {[%emt 0:01:48]} 17. Qh6 {[%emt 0:03:51]} Bxf3 {[%emt 0:09:21]} 18. Bxf3 {[%emt 0:00:09]} Rac8 {[%emt 0:00:09]} 19. g4 {[%emt 0:02:35][%cal Bg3g4,Bg4g5][%mdl 32] Black should prevent g5.} Qc7 {[%emt 0:06:04]} 20. g5 {[%emt 0:01:50]} Nd7 {[%emt 0:00:33]} 21. Bg4 {[%emt 0:00:32]} e6 {[%emt 0:05:42]} 22. Rfd1 {[%emt 0:01:17]} Nf8 {[%emt 0:01:23][%cal Ob6b5]} 23. Qh3 {[%emt 0:05:18]} Qc5 {[%emt 0:02:33]} 24. Qe3 $1 {[%emt 0:00:04]} Qa3 {[%emt 0:10:24]} 25. Qd2 {[%emt 0:00:42]} Rc5 {[%emt 0:04:34]} 26. Rxd6 {[%emt 0:10:27]} (26. Rd3 $16 {aiming for b4.} Rc7 27. Bf3 (27. Rxd6 Rcd7 $11)) 26... Rxd6 $11 {[%emt 0:00:47]} 27. Qxd6 {[%emt 0:00:05]} Qxa2 {[%emt 0:01:00]} 28. Qe7 {[%emt 0:00:07]} Rc8 {[%emt 0:02:18]} 29. Rd3 {[%emt 0:00:07]} Qa1+ {[%emt 0:01:45]} 30. Kg2 {[%emt 0:00:02] [#] Rf3 is the strong threat. Active counter play!} Qe5 $1 {[%emt 0:00:06]} 31. h4 $40 {[%emt 0:15:32][%mdl 128] White attacks.} Qf4 {[%emt 0:00:51]} 32. Kh3 {[%emt 0:05:31] Threatens to win with Rf3.} Rc7 {[%emt 0:05:18]} (32... Qc7 $11 33. Qd6 Qxd6 34. Rxd6 Rc7) 33. Qd8 $1 $14 {[%emt 0:01:27]} Qe5 $2 {[%emt 0:01:46] [#] This costs Black the game.} (33... b5 $14) 34. Qb8 $1 $18 {[%emt 0:04:32]} Rc5 {[%emt 0:00:32]} 35. Qxa7 {[%emt 0:01:25]} Ra5 {[%emt 0:00:32]} (35... Qc7 $142 36. Qa8 Qc6) 36. Qe7 {[%emt 0:04:53] Black must now prevent Rd8.} Qa1 {[%emt 0:06:48]} 37. Kg2 {[%emt 0:04:03] Against Qh1+. And now Rd8 would win.} Ra7 {[%emt 0:01:59]} 38. Qe8 {[%emt 0:00:27]} Ra8 {[%emt 0:04:25]} 39. Qc6 {[%emt 0:00:06] Strongly threatening Bf3.} Qa6 {[%emt 0:00:28]} 40. Rd6 {[%emt 0:00:07]} Rc8 {[%emt 0:00:41]} 41. Qxb6 {[%emt 0:00:22]} Qa8+ {[%emt 0:01:29]} (41... Qxb6 42. Rxb6 Nd7) 42. Bf3 {[%emt 0:00:07]} Qa2 {[%emt 0:00:20]} 43. Qb7 {[%emt 0:02:44]} Rc5 {[%emt 0:01:08]} 44. Rd8 {[%emt 0:00:53] Threatening mate with Qe7.} Qa5 {[%emt 0:00:05]} 45. Qe7 {[%emt 0:01:39] Weighted Error Value: White=0.09 (flawless) /Black=0.47} 1-0